[Event "1st Bangalore GM-Open-A 2024"]
[Site "Bangalore"]
[Date "2024.01.25"]
[Round "9.10"]
[White "Aswath, S."]
[Black "Shyaamnikhil P"]
[Result "0-1"]
[ECO "A20"]
[WhiteElo "2369"]
[BlackElo "2443"]
[Annotator "TA"]
[PlyCount "98"]
[EventDate "2024.01.20"]
[EventType "swiss"]
[EventCountry "IND"]
[SourceTitle "playchess.com"]
[Source "ChessBase"]
[SourceQuality "1"]
[TimeControl "5400+30"]

{[%evp 19,98,-19,-18,-19,0,0,0,0,26,24,26,14,29,29,11,24,37,-16,-12,-17,0,0,0,0,0,0,0,-16,-14,-42,-34,-35,-41,-28,-13,-62,-77,-226,-230,-371,-292,-290,-272,-322,-159,-207,-214,-312,-183,-200,-201,-185,-177,-450,-416,-433,-424,-391,-183,-204,-8,-8,-7,-12,0,-815,-816,-983,491,-719,-718,-881,-812,-1164,-1181,-1123,-1010,-1357,-1288,-1614,-1495]} 1. c4 {[%emt 0:03:00]} e5 {[%emt 0:03:26]} 2. g3 {[%emt 0:00:11]} c6 {[%emt 0:02:30]} 3. Nf3 {[%emt 0:00:11]} e4 {[%emt 0:04:45]} 4. Nd4 {[%emt 0:00:09]} Qb6 {[%emt 0:02:32]} 5. Nb3 {[%emt 0:00:20]} a5 {[%emt 0:02:06]} 6. e3 $146 {[%emt 0:00:45] A20: English Opening: 1...e5.} ({Predecessor:} 6. d4 a4 7. c5 Qd8 8. N3d2 d5 9. cxd6 Nf6 10. Bg2 e3 11. fxe3 Bxd6 12. e4 {1-0 Tomashevsky,E (2706)-Baklan,V (2587) Titled Tuesday intern op 16th Feb blitz 2021 (6)}) 6... d5 {[%emt 0:01:51]} 7. cxd5 {[%emt 0:06:39]} cxd5 {[%emt 0:00:25]} 8. d3 {[%emt 0:03:06]} Nf6 {[%emt 0:03:19]} 9. Nc3 {[%emt 0:02:29]} Nc6 {[%emt 0:04:57]} 10. dxe4 {[%emt 0:01:35]} dxe4 {[%emt 0:01:33]} 11. Nd2 {[%emt 0:07:09]} Bf5 {[%emt 0:17:33]} 12. Bg2 {[%emt 0:01:40]} Rd8 {[%emt 0:00:12]} 13. O-O {[%emt 0:01:20]} Qa6 {[%emt 0:07:10]} 14. Qa4 {[%emt 0:04:53]} (14. Qe2 {simplifies} Qxe2 15. Nxe2 Bb4 16. Nc3) 14... Bb4 {[%emt 0:05:20]} 15. Ndxe4 {[%emt 0:04:38]} (15. Bxe4 Nxe4 16. Ndxe4 O-O $19) 15... Nxe4 {[%emt 0:00:14]} 16. Nxe4 {[%emt 0:00:48]} O-O {[%emt 0:00:59]} 17. a3 {[%emt 0:05:34]} Be7 {[%emt 0:01:57]} 18. Qc2 {[%emt 0:01:55]} (18. Nc3 $14) 18... Ne5 $11 {[%emt 0:00:45]} 19. Qc7 {[%emt 0:06:21]} Nc6 {[%emt 0:09:12]} (19... Qe6 $5 20. Nc3 Bd3 $11) 20. Qf4 $1 {[%emt 0:01:58]} Be6 {[%emt 0:04:10]} 21. Re1 {[%emt 0:08:39]} f6 {[%emt 0:00:50]} 22. Nc3 {[%emt 0:08:18]} Ne5 {[%emt 0:01:33]} 23. Qe4 {[%emt 0:00:44]} Nd3 {[%emt 0:07:12]} 24. Rd1 {[%emt 0:02:49]} (24. Qxb7 $2 Qxb7 25. Bxb7 Nxe1 $19) 24... Nc5 $1 {[%emt 0:01:41]} 25. Qf3 $1 {[%emt 0:01:01]} Rxd1+ {[%emt 0:04:30]} 26. Qxd1 {[%emt 0:01:08]} Rd8 $1 {[%emt 0:01:51]} 27. Qf3 {[%emt 0:03:40]} (27. Qe1 $11) 27... Bc4 $15 {[%emt 0:00:00]} 28. Qf4 {[%emt 0:06:21]} (28. Qg4 $17) 28... b5 {[%emt 0:06:44]} 29. Bf3 (29. e4 $142 Nb3 30. Rb1) 29... Bd6 {[%emt 0:03:56]} 30. Qg4 {[%emt 0:12:10]} Be5 {[%emt 0:00:51]} 31. Be2 {[%emt 0:02:26]} Nb3 {[%emt 0:00:00]} (31... Be6 $1 $19 {[%cal Re6g4] is more deadly.} 32. Qf3 Nb3) 32. Rb1 {[%emt 0:00:12]} (32. Bxc4+ $17 bxc4 33. Rb1) 32... Qc6 $19 {[%emt 0:00:00]} 33. e4 {[%emt 0:01:28] [#]} (33. Bxc4+ {only move.} Qxc4 (33... bxc4 34. e4 $17) 34. e4) 33... h5 {[%emt 0:00:00]} (33... Be6 $142 $1 {[%mdl 512]} 34. Qf3 (34. Bxb5 $2 Qc8 $19) 34... Nd4) 34. Qf3 $19 {[%emt 0:02:01] [#]} Nd4 $1 {[%emt 0:01:18]} 35. Bxc4+ {[%emt 0:00:10]} Qxc4 {[%emt 0:00:04]} 36. Qe3 $2 {[%emt 0:01:32]} (36. Qxh5 b4 37. axb4 axb4 38. Qg6) 36... b4 {[%emt 0:00:06]} 37. axb4 {[%emt 0:00:11]} axb4 {[%emt 0:00:06]} 38. Nd5 {[%emt 0:00:15]} Qc2 {[%emt 0:00:54]} (38... h4 $142 39. Bd2 Rxd5 40. exd5 Qxd5) 39. Ra1 $19 {[%emt 0:00:02]} Nb3 $2 {[%emt 0:00:10]} ({Black should play} 39... Qd1+ $19 40. Kg2 Kh8 41. Nxb4 Nb3) 40. Qb6 $1 $11 {[%emt 0:01:23]} Re8 {[%emt 0:01:17]} (40... Rf8 $5 41. Qe6+ $8 Kh8 $11) 41. Qb5 $1 {[%emt 0:00:17]} Rb8 {[%emt 0:02:16]} 42. Qd7 $2 {[%emt 0:01:22][%mdl 8192]} (42. Nxf6+ $11 gxf6 43. Qd5+ Kh8 44. Bf4) 42... Nxa1 $19 {[%emt 0:00:13]} 43. Bh6 {[%emt 0:00:33]} Qd1+ {[%emt 0:00:44]} ({Not} 43... gxh6 44. Ne7+ Kh8 45. Ng6+ Kg8 46. Ne7+ Kh8 47. Ng6+ Kg8 48. Ne7+ $11) 44. Kg2 {[%emt 0:00:06]} Qg4 {[%emt 0:00:04]} (44... gxh6 45. Ne7+ Kf7 46. Qxd1 Kxe7 47. Qxa1 $18) 45. Ne7+ {[%emt 0:00:56]} Kh8 {[%emt 0:00:06]} 46. Nf5 {[%emt 0:00:28]} gxh6 {[%emt 0:00:07]} 47. f3 {[%emt 0:00:30]} Qg6 {[%emt 0:00:06]} 48. Qa7 {[%emt 0:00:33]} Nc2 {[%emt 0:00:27]} 49. f4 {[%emt 0:00:31]} Bxf4 {[%emt 0:00:34]} 0-1

[Event "1st Bangalore GM-Open-A 2024"]
[Site "Bangalore"]
[Date "2024.01.25"]
[Round "9.11"]
[White "Liyanage, Ranindu Dilshan"]
[Black "Venkatesh, M.R."]
[Result "1/2-1/2"]
[ECO "E04"]
[WhiteElo "2366"]
[BlackElo "2392"]
[Annotator "TA"]
[PlyCount "80"]
[EventDate "2024.01.20"]
[EventType "swiss"]
[EventCountry "IND"]
[SourceTitle "playchess.com"]
[Source "ChessBase"]
[SourceQuality "1"]
[TimeControl "5400+30"]

{[%evp 14,80,12,6,11,6,55,33,10,37,27,21,23,22,77,68,100,99,87,99,86,88,93,91,223,229,251,241,259,267,293,203,271,268,310,91,164,73,91,71,85,23,225,187,425,423,400,181,192,181,319,275,323,321,289,145,179,133,126,133,125,118,89,86,87,20,21,20,13]} 1. d4 {[%emt 0:00:42]} Nf6 {[%emt 0:00:25]} 2. c4 {[%emt 0:00:16]} e6 {[%emt 0:00:08]} 3. Nf3 {[%emt 0:00:19]} d5 {[%emt 0:00:35]} 4. g3 {[%emt 0:00:17]} dxc4 {[%emt 0:00:23]} 5. Bg2 {[%emt 0:00:13]} Bd7 {[%emt 0:00:12]} 6. Ne5 {[%emt 0:01:01]} Bc6 {[%emt 0:00:10]} 7. Nxc6 {[%emt 0:00:37]} Nxc6 {[%emt 0:00:08]} 8. O-O {[%emt 0:01:14]} Qd7 {[%emt 0:02:20]} (8... Nxd4 9. Bxb7 Rb8 10. Bg2 $16) 9. e3 {[%emt 0:00:08][%mdl 1024] White has compensation.} O-O-O {[%emt 0:02:51]} (9... Rd8 $11) 10. Nc3 {[%emt 0:11:39]} (10. Nd2 $5) 10... h5 {[%emt 0:07:25] White is slightly better.} 11. b3 {[%emt 0:06:33]} Bb4 {[%emt 0:15:30]} 12. Ne2 {[%emt 0:15:48]} c3 {[%emt 0:05:54]} 13. a3 {[%emt 0:06:36]} Be7 {[%emt 0:01:07]} (13... Bd6 $11) 14. Nxc3 {[%emt 0:09:22]} Nd5 {[%emt 0:01:02]} 15. Bd2 {[%emt 0:02:26]} f5 {[%emt 0:00:47]} 16. b4 {[%emt 0:02:26] b5 would now be deadly.} Bf6 {[%emt 0:05:57]} 17. Na4 {[%emt 0:05:11]} b6 {[%emt 0:08:21] Prevents Nc5.} 18. Qe2 {[%emt 0:01:18]} Nb8 {[%emt 0:01:04]} (18... Nce7 $16 {is a better defense.}) 19. Nc3 {[%emt 0:00:30]} h4 {[%emt 0:00:28]} 20. Rfc1 {[%emt 0:07:04]} hxg3 {[%emt 0:15:26]} 21. hxg3 {[%emt 0:00:07]} (21. fxg3 $6 g5 22. a4 g4) 21... g6 {[%emt 0:00:05]} 22. e4 {[%emt 0:01:08]} fxe4 {[%emt 0:08:00]} 23. Qxe4 {[%emt 0:01:05]} (23. Nxe4 $6 Bxd4 24. Ra2 Rh5 $18) 23... Nc6 {[%emt 0:09:45]} 24. Be3 {[%emt 0:02:46] [#]} (24. Qxg6 Bxd4 25. Nxd5 exd5 $18) (24. Nb5 $18 {[%cal Oc1c6] aiming for Rxc6!} Kb8 (24... a6 $2 25. Rxc6 axb5 26. Rac1 $18) 25. Rc4 (25. Qxg6 Nxd4 26. Nxd4 Bxd4 $15)) 24... Nce7 {[%emt 0:01:27]} (24... Kb8 $16 {was necessary.}) 25. Qd3 {[%emt 0:03:52]} (25. Bf4 $18 {[%cal Of4c7] is more deadly. And now Bxc7! would win.} c6 26. b5 Nxf4 27. gxf4) 25... Kb8 $16 {[%emt 0:03:16]} 26. Ne4 {[%emt 0:02:49] Nxf6 is the strong threat.} Bg7 {[%emt 0:01:06]} 27. Rab1 {[%emt 0:01:09]} (27. Bg5 $16) 27... c6 $2 {[%emt 0:01:40] [#]} (27... Rdf8 $11) 28. b5 $18 {[%emt 0:01:55]} cxb5 {[%emt 0:02:33]} (28... c5) 29. Rxb5 {[%emt 0:00:40]} Ka8 {[%emt 0:02:41]} 30. Bf4 {[%emt 0:04:51]} (30. a4 $142) 30... Rc8 {[%emt 0:00:33]} ({But not} 30... Nxf4 $2 31. Nf6+ (31. gxf4 Nd5 $16) 31... Nfd5 (31... Ned5 $2 32. Nxd7 Rxd7 33. gxf4 $18) 32. Nxd7 $18) 31. Nc3 {[%emt 0:01:43]} Bf6 {[%emt 0:01:53]} (31... Kb7 {was worth a try.} 32. Rbb1 Rc6) 32. Rcb1 {[%emt 0:02:24]} Rc6 {[%emt 0:00:24]} 33. Nxd5 {[%emt 0:02:49]} exd5 {[%emt 0:01:41]} 34. Re1 {[%emt 0:01:47] Dodges Qe6} ({White should play} 34. a4 $18) 34... Re6 {[%emt 0:00:55]} 35. Rbb1 {[%emt 0:00:09]} (35. Rxe6 $18 {Intending Rbxb6 and mate.} Qxe6 36. a4) 35... g5 $16 {[%emt 0:00:51]} 36. Bd2 {[%emt 0:00:46] White is more active. This pair of bishops is nice.} Kb8 {[%emt 0:00:25]} 37. Rxe6 {[%emt 0:00:51]} Qxe6 {[%emt 0:00:02]} 38. Re1 {[%emt 0:00:06]} Qf5 {[%emt 0:00:40]} 39. Qxf5 {[%emt 0:01:48]} (39. Qc3 $16) 39... Nxf5 $11 {[%emt 0:01:06]} 40. Re6 {[%emt 0:01:04]} Rf8 $1 {[%emt 0:00:00] Weighted Error Value: White=0.40/Black=0.43.  Loses game:     	---       	Black=1      Missed win:     	White=1     	---        Mistake:       	White=6     	Black=6      Inaccurate:     	White=1     	Black=2      OK:         	White=14    	Black=12     Best:        	---       	Black=1      Strong:       	---       	Black=1} 1/2-1/2

[Event "1st Bangalore GM-Open-A 2024"]
[Site "Bangalore"]
[Date "2024.01.25"]
[Round "9.12"]
[White "Ritviz, Parab"]
[Black "Dzhumaev, Marat"]
[Result "0-1"]
[ECO "C41"]
[WhiteElo "2391"]
[BlackElo "2362"]
[Annotator "TA"]
[PlyCount "96"]
[EventDate "2024.01.20"]
[EventType "swiss"]
[EventCountry "IND"]
[SourceTitle "playchess.com"]
[Source "ChessBase"]
[SourceQuality "1"]
[TimeControl "5400+30"]

{[%evp 26,96,28,0,22,-37,-31,-35,-52,-121,-119,-199,-127,-131,-80,-106,-112,-106,-100,-118,-120,-108,-107,-118,-129,-156,-147,-141,-107,-122,-118,-114,-114,-121,-125,-142,-162,-166,-143,-482,-482,-470,-458,-461,-253,-234,-164,-135,-143,-198,-91,-177,-189,-179,-186,-185,-173,-218,-178,-259,-168,-312,-304,-452,-454,-443,-455,-439,-339,-401,-302,-530,-525]} 1. e4 {[%emt 0:02:52]} d6 {[%emt 0:00:12]} 2. d4 {[%emt 0:00:26]} Nf6 {[%emt 0:00:11]} 3. Nc3 {[%emt 0:00:08]} e5 {[%emt 0:00:07]} 4. Nf3 {[%emt 0:03:08]} Nbd7 {[%emt 0:00:15]} 5. Bc4 {[%emt 0:03:14]} Be7 {[%emt 0:00:13]} 6. O-O {[%emt 0:01:38]} O-O {[%emt 0:00:09]} 7. Re1 {[%emt 0:02:40]} a6 {[%emt 0:00:43]} 8. a4 {[%emt 0:00:14]} b6 {[%emt 0:00:54] C41: Philidor-Verteidigung.} 9. b4 {[%emt 0:35:53]} c6 {[%emt 0:04:30]} 10. d5 {[%emt 0:08:32]} Bb7 {[%emt 0:01:02]} 11. Ba3 $146 {[%emt 0:05:16]} ({Predecessor:} 11. dxc6 Bxc6 12. Rb1 a5 13. Ba3 axb4 14. Bxb4 Bxa4 15. Bxd6 Bxd6 16. Qxd6 Bxc2 17. Rbc1 {½-½ Ni,H (2645)-Gagunashvili,M (2596) Manila Campomanes Memorial op 2010 (6)}) 11... Qc7 {[%emt 0:42:04]} 12. dxc6 {[%emt 0:06:19]} Bxc6 {[%emt 0:00:13]} 13. Qd3 {[%emt 0:03:55]} Bb7 {[%emt 0:02:18]} 14. Nd2 {[%emt 0:04:31]} Rfc8 {[%emt 0:01:37]} 15. Bb2 {[%emt 0:04:31]} (15. Rad1 $11) 15... d5 $15 {[%emt 0:08:40]} 16. exd5 {[%emt 0:11:07]} Bxb4 {[%emt 0:01:03]} 17. Ncb1 {[%emt 0:02:40]} (17. Rab1 $15) 17... e4 {[%emt 0:20:26]} 18. Qb3 {[%emt 0:00:37]} (18. Qg3 $17) 18... Bd6 {[%emt 0:00:25]} (18... Ng4 $1 $19 19. Qxb4 Qxh2+ (19... Nxh2 $2 20. d6 $18) 20. Kf1 e3 21. fxe3 Qg3) 19. Qh3 {[%emt 0:01:16]} Ne5 {[%emt 0:01:18]} (19... Bxd5 20. Bxd5 Nxd5 21. Nxe4) ({Vorzuziehen ist} 19... Nxd5 {...Re8 ist eine echte Drohung.} 20. Nxe4 Bxh2+ (20... Qxc4 21. Qxd7 Bb4 22. c3 $15) 21. Qxh2 Qxh2+ (21... Qxc4 22. Qg3 $16) 22. Kxh2 Rxc4) 20. Bb3 {[%emt 0:00:35] [#]} e3 $1 {[%emt 0:04:53]} (20... Nxd5 $6 21. Nxe4 Nf4 22. Qf5 Bxe4 23. Rxe4 $11) (20... Bxd5 21. Bxd5 Nxd5 22. Nxe4 Qxc2 23. Nxd6 $15) 21. Rxe3 {[%emt 0:00:38]} Nxd5 {[%emt 0:00:32]} 22. Bxd5 {[%emt 0:00:46]} Bxd5 {[%emt 0:00:09]} 23. Nc3 {[%emt 0:00:22]} Be6 {[%emt 0:00:13]} 24. Qh4 {[%emt 0:00:30]} Ng6 {[%emt 0:00:24]} 25. Qh5 {[%emt 0:00:25]} Bf4 {[%emt 0:03:03]} 26. Rd3 {[%emt 0:00:35]} Rd8 {[%emt 0:03:16]} 27. Nf3 {[%emt 0:00:31]} Rxd3 {[%emt 0:00:31]} 28. cxd3 {[%emt 0:00:02]} Rd8 {[%emt 0:02:45]} 29. d4 {[%emt 0:00:26]} h6 {[%emt 0:01:05]} 30. Re1 {[%emt 0:00:59]} Qc4 {[%emt 0:00:26]} 31. h3 {[%emt 0:00:38]} Bc7 {[%emt 0:00:37]} 32. Ne2 $2 {[%emt 0:00:34][%mdl 8192]} (32. g3 $17 {leistet mehr Widerstand.}) 32... Rd5 $19 {[%emt 0:00:23]} (32... Qxa4 33. Nc3 Qb4 34. Ba1 $19) 33. Ne5 {[%emt 0:00:13]} Bxe5 {[%emt 0:00:58]} (33... Qxa4 34. f4 Bxe5 35. fxe5 $19) 34. dxe5 {[%emt 0:00:05]} Rd2 {[%emt 0:00:40]} (34... Qxa4 35. Qf3 $19) (34... Qe4 $142 35. Bc3 Qxa4) 35. Bc1 $19 {[%emt 0:00:05]} Ra2 {[%emt 0:01:05]} 36. Be3 {[%emt 0:00:14]} Rxa4 {[%emt 0:00:23]} 37. Nd4 {[%emt 0:01:47]} (37. Rd1 $17) 37... Qc3 {[%emt 0:00:33]} (37... Qd5 $19 {und Schwarz behält klar die Oberhand.} 38. Nxe6 Nh4 (38... Qxe6 $2 39. Rd1 $19)) 38. Rc1 {[%emt 0:00:36]} (38. Rd1 $17 Ra1 (38... Nf4 39. Nxe6 Nxh5 40. Rd8+ Kh7 41. Nf8+ Kg8 42. Nd7+ Kh7 43. Nf8+ Kh8 44. Nd7+ Kh7 45. Nf8+ $11) 39. Nxe6 Qxe5 (39... fxe6 40. Bxb6 a5 41. Kh2 $11) 40. Qg4 Rxd1+ (40... fxe6 41. Bxb6 h5 42. Qf3 $15) 41. Qxd1 Qxe6 (41... fxe6 42. Bxb6 Qe4 43. f3 $17) 42. Qd8+ Kh7 43. Bxb6) 38... Ra1 $19 {[%emt 0:00:06]} 39. Rxa1 {[%emt 0:00:07]} Qxa1+ {[%emt 0:00:04]} 40. Kh2 {[%emt 0:00:03]} Qa2 {[%emt 0:00:57]} 41. Qd1 {[%emt 0:01:16]} b5 {[%emt 0:00:17]} ({Jedoch nicht} 41... Nxe5 42. Nxe6 Qxe6 43. Qd8+ Kh7 44. Bxb6 $17) 42. f4 {[%emt 0:00:33]} (42. Nc6 {war angesagt.}) 42... Bd5 {[%emt 0:00:12]} 43. Nf3 {[%emt 0:00:30]} (43. Qd2 $142) 43... Ne7 {[%emt 0:00:29]} 44. Nd2 {[%emt 0:00:32]} (44. Bc5 {war nötig.} Nc6 45. Qf1) 44... Nf5 $19 {[%emt 0:00:12]} 45. Bf2 {[%emt 0:00:11]} b4 {[%emt 0:01:04]} 46. Qc1 {[%emt 0:00:05]} Ne7 {[%emt 0:01:01]} 47. Bd4 {[%emt 0:00:09]} b3 {[%emt 0:00:27]} 48. f5 $2 {[%emt 0:00:15]} (48. Kg1) 48... Qc2 {[%emt 0:00:13]} ({Nicht} 48... Nxf5 49. Qc8+ Kh7 50. Qxf5+ Kh8 51. Bc3 $16) 0-1

[Event "1st Bangalore GM-Open-A 2024"]
[Site "Bangalore"]
[Date "2024.01.25"]
[Round "9.13"]
[White "Sahoo, Utkal Ranjan"]
[Black "Audi Ameya"]
[Result "0-1"]
[ECO "A05"]
[WhiteElo "2316"]
[BlackElo "2385"]
[Annotator "TA"]
[PlyCount "66"]
[EventDate "2024.01.20"]
[EventType "swiss"]
[EventCountry "IND"]
[SourceTitle "playchess.com"]
[Source "ChessBase"]
[SourceQuality "1"]
[TimeControl "5400+30"]

{[%evp 17,66,-8,-4,-17,0,0,0,0,0,0,0,-10,0,-41,-36,-75,-85,-96,-85,-113,-97,-136,-128,-141,-115,-114,-122,-214,-216,-337,-359,-397,-364,-519,-512,-495,-504,-558,-560,-892,-845,-1443,-1435,-1453,-1425,-1379,-1349,-2156,-1927,-2211,-2088]} 1. e4 {[%emt 0:00:14]} c5 {[%emt 0:00:39]} 2. Nf3 {[%emt 0:00:11]} d6 {[%emt 0:00:03]} 3. g3 {[%emt 0:01:15]} Nf6 {[%emt 0:00:30]} 4. d3 {[%emt 0:00:14]} Nc6 {[%emt 0:01:08]} 5. Bg2 {[%emt 0:00:11]} g6 {[%emt 0:00:26]} 6. O-O {[%emt 0:00:30]} Bg7 {[%emt 0:00:05]} 7. Re1 {[%emt 0:00:10]} O-O {[%emt 0:00:18]} 8. c3 {[%emt 0:00:07]} e5 {[%emt 0:08:50]} 9. Nbd2 {[%emt 0:06:54][%cal Bb1d2,Bd2c4,Bc4e3][%mdl 32]} h6 {[%emt 0:05:26]} 10. a3 {[%emt 0:05:23]} a5 {[%emt 0:00:40]} 11. a4 {[%emt 0:01:19]} Be6 {[%emt 0:00:09]} 12. Nc4 {[%emt 0:09:03] The position is equal.} Re8 {[%emt 0:13:27]} 13. Qe2 {[%emt 0:13:32]} Qc7 {[%emt 0:00:10]} 14. Ne3 {[%emt 0:04:00]} d5 {[%emt 0:02:22]} 15. Nh4 {[%emt 0:12:17]} Rad8 {[%emt 0:02:17]} 16. h3 {[%emt 0:04:00]} Qd7 {[%emt 0:17:45] White is on the road to losing.} 17. exd5 {[%emt 0:03:44]} Nxd5 {[%emt 0:01:05]} 18. Nxd5 {[%emt 0:02:43]} Bxd5 {[%emt 0:00:04]} 19. Bf1 {[%emt 0:01:15]} Kh7 {[%emt 0:07:29]} 20. Kh2 {[%emt 0:07:32]} g5 {[%emt 0:04:45]} 21. Ng2 {[%emt 0:01:13]} f5 {[%emt 0:00:08] Black is much more active.} 22. f3 {[%emt 0:07:47]} (22. Ne3 $17 {might work better.}) 22... f4 $19 {[%emt 0:02:06] Strongly threatening ...fxg3+.} 23. g4 {[%emt 0:00:12] [#]} (23. Qf2 {was forced.}) 23... h5 $1 {[%emt 0:02:48][%mdl 512]} 24. Qf2 {[%emt 0:01:06]} (24. Bd2 hxg4) 24... hxg4 {[%emt 0:03:52]} 25. hxg4 {[%emt 0:00:44]} (25. fxg4 $142 Rh8 26. Qxc5) 25... Rh8 {[%emt 0:03:32] Black is clearly winning.} 26. Kg1 {[%emt 0:00:21]} Kg8 {[%emt 0:00:50]} 27. Re2 {[%emt 0:09:59]} Qe6 {[%emt 0:01:22]} 28. Re4 {[%emt 0:01:17]} Qh6 {[%emt 0:02:46][%csl Gh8][%cal Rh6h1]} 29. Qxc5 {[%emt 0:01:08]} Bf8 {[%emt 0:09:58]} 30. Qb6 {[%emt 0:00:33]} Rd6 {[%emt 0:00:07]} 31. Kf2 {[%emt 0:05:29]} Qh2 {[%emt 0:02:07]} 32. Ke2 {[%emt 0:01:27]} Bxe4 {[%emt 0:00:39]} 33. dxe4 {[%emt 0:00:21] [#]} Nd4+ $1 {[%emt 0:00:03][%mdl 512] Weighted Error Value: White=1.15/Black=0.07 (flawless) .  Mistake:       	White=3     	---        Inaccurate:     	White=6     	---        OK:         	White=2     	Black=10} 0-1

[Event "1st Bangalore GM-Open-A 2024"]
[Site "Bangalore"]
[Date "2024.01.25"]
[Round "9.14"]
[White "Manish Anto Cristiano F"]
[Black "Lalit Babu M R"]
[Result "0-1"]
[ECO "C71"]
[WhiteElo "2349"]
[BlackElo "2525"]
[Annotator "TA"]
[PlyCount "134"]
[EventDate "2024.01.20"]
[EventType "swiss"]
[EventCountry "IND"]
[SourceTitle "playchess.com"]
[Source "ChessBase"]
[SourceQuality "1"]
[TimeControl "5400+30"]

{[%evp 50,134,4,0,0,-10,10,0,9,12,31,0,29,-39,-39,-39,-39,-39,-39,-39,-39,-60,-19,-60,-60,-118,-120,-110,-107,-240,-297,-285,-283,-254,-254,-280,-285,-304,-293,-279,-243,-707,-679,-871,-452,-940,-883,-939,-925,-899,-897,-790,-718,-596,-529,-476,-263,-310,-257,-835,-270,-887,-887,-877,-262,-239,-170,-2204,-2118,-1938,-1854,-2219,-2937,-5197,-3113,-2742,-1686,-5593,-5429,-2473,-2046,-29970,-29971,-5828,-4786,-29983,-29984]} 1. e4 {[%emt 0:04:16]} e5 {[%emt 0:00:09]} 2. Nf3 {[%emt 0:00:17]} Nc6 {[%emt 0:00:08]} 3. Bb5 {[%emt 0:00:22]} a6 {[%emt 0:00:08]} 4. Ba4 {[%emt 0:00:17]} d6 {[%emt 0:00:11]} 5. c4 {[%emt 0:00:27]} Bg4 {[%emt 0:00:20]} 6. h3 {[%emt 0:00:53]} Bxf3 {[%emt 0:00:06]} 7. Qxf3 {[%emt 0:00:08]} Nf6 {[%emt 0:00:08]} 8. Nc3 {[%emt 0:02:52]} Nd7 {[%emt 0:01:05]} 9. Bxc6 {[%emt 0:02:13]} bxc6 {[%emt 0:00:03]} 10. O-O {[%emt 0:03:48]} Nc5 {[%emt 0:00:43]} 11. Qd1 {[%emt 0:04:50]} Be7 {[%emt 0:02:13]} 12. f4 {[%emt 0:06:01]} Nd3 {[%emt 0:11:11]} 13. f5 {[%emt 0:05:25]} Qb8 {[%emt 0:02:59]} 14. Kh2 {[%emt 0:07:59]} Qb6 {[%emt 0:01:24]} 15. Rf3 {[%emt 0:01:06]} Qd4 {[%emt 0:07:31]} 16. Qe2 {[%emt 0:02:36]} Nxc1 {[%emt 0:06:52]} 17. Rxc1 {[%emt 0:00:07]} Bg5 {[%emt 0:00:26]} 18. Rc2 {[%emt 0:02:44]} h5 {[%emt 0:06:36]} 19. b3 {[%emt 0:06:10]} h4 {[%emt 0:03:58]} 20. Rd3 {[%emt 0:14:59]} Qa7 {[%emt 0:02:47]} 21. Qg4 {[%emt 0:03:45]} f6 {[%emt 0:10:37]} 22. Qf3 {[%emt 0:01:28]} Kf7 {[%emt 0:03:11]} 23. Na4 {[%emt 0:01:41]} c5 {[%emt 0:07:29]} 24. Nc3 {[%emt 0:01:29]} Qb7 {[%emt 0:00:48]} 25. Kg1 {[%emt 0:04:51]} Rag8 {[%emt 0:00:59]} 26. Nd5 {[%emt 0:01:55]} a5 {[%emt 0:04:32]} 27. a4 {[%emt 0:02:35]} g6 {[%emt 0:05:27]} 28. fxg6+ {[%emt 0:00:46]} Rxg6 {[%emt 0:00:05]} 29. Qf5 {[%emt 0:01:14]} Rd8 {[%emt 0:07:05]} 30. Rcc3 {[%emt 0:05:59]} Rg7 {[%emt 0:03:12]} 31. Rf3 {[%emt 0:01:46]} (31. g4 $11) 31... Qc8 $1 $15 {[%emt 0:00:16]} 32. Rcd3 {[%emt 0:07:02]} Qxf5 {[%emt 0:01:37]} 33. Rxf5 {[%emt 0:00:02]} c6 {[%emt 0:01:41]} 34. Ne3 {[%emt 0:01:13]} Ke6 {[%emt 0:00:08]} 35. Rf2 {[%emt 0:01:17]} Bf4 {[%emt 0:02:40]} 36. Kf1 {[%emt 0:00:28]} Rg3 {[%emt 0:01:23]} 37. Rf3 {[%emt 0:03:00]} (37. Kg1 $15) 37... Rxf3+ $17 {[%emt 0:02:42]} 38. gxf3 {[%emt 0:00:02] [#]} Bxe3 $1 {[%emt 0:00:05]} 39. Rxe3 {[%emt 0:00:38]} (39. dxe3 $17 Rg8 40. f4) 39... Rg8 $19 {[%emt 0:01:03]} 40. Kf2 {[%emt 0:00:22]} Rg3 {[%emt 0:00:35]} 41. Re1 {[%emt 0:00:17]} Rxh3 {[%emt 0:00:17]} 42. Rg1 {[%emt 0:00:25]} Kf7 {[%emt 0:00:26]} ({Don't play} 42... Rh2+ 43. Rg2 Rh1 44. Rg7 $17) 43. Rg4 {[%emt 0:00:27]} Rh2+ {[%emt 0:01:30]} 44. Ke3 {[%emt 0:00:32]} Rh1 {[%emt 0:00:03]} 45. Kd3 $2 {[%emt 0:00:32]} (45. Kf2) 45... h3 $19 {[%emt 0:00:56]} 46. Rh4 {[%emt 0:00:48]} Kg6 {[%emt 0:00:08]} 47. Rg4+ {[%emt 0:00:05]} (47. Ke2 $142 f5 48. exf5+ Kxf5 49. Kf2) 47... Kh5 $19 {[%emt 0:01:59]} 48. Rg8 {[%emt 0:00:45]} h2 {[%emt 0:00:11]} 49. Rh8+ {[%emt 0:00:18]} Kg5 {[%emt 0:00:04]} 50. Ke2 {[%emt 0:00:34]} Kg6 {[%emt 0:00:45]} 51. Rh3 {[%emt 0:00:33]} Kf7 {[%emt 0:01:02]} 52. Rh7+ {[%emt 0:00:35]} Ke6 {[%emt 0:00:04]} (52... Kg6 $2 53. Rh8 $19) (52... Kg8 $142 53. Rh3 Kg7 54. Rg3+ Kh6 55. Rh3+ Kg5) 53. Rh8 {[%emt 0:01:27]} d5 {[%emt 0:00:08]} 54. Rh7 $2 {[%emt 0:00:08]} (54. Rh6) 54... Kd6 $2 {[%emt 0:01:52]} (54... dxe4 {[%cal Oe4e3] Strongly threatening ...e3!} 55. fxe4 f5 56. Rh6+ Kf7 57. exf5 Kg7 58. Rg6+ Kh7) 55. Rh6 $2 {[%emt 0:00:16] [#]} (55. Rh5) 55... dxe4 $1 $19 {[%emt 0:00:36]} 56. fxe4 {[%emt 0:00:06]} Ke7 $2 {[%emt 0:00:07]} (56... Ke6 57. Rh3 f5 58. Rh6+ Kf7 59. exf5 Kg7) 57. Rh7+ {[%emt 0:01:10]} Kf8 {[%emt 0:00:05]} 58. Rh8+ $2 {[%emt 0:00:32]} (58. Kf3) 58... Kg7 $19 {[%emt 0:00:07]} 59. Rh3 {[%emt 0:00:08]} Kg6 {[%emt 0:00:12]} 60. Rg3+ {[%emt 0:00:23]} Kh5 {[%emt 0:00:15]} 61. Rh3+ {[%emt 0:00:15]} Kg4 {[%emt 0:00:09]} 62. Rh8 {[%emt 0:00:05]} Kg3 {[%emt 0:00:14]} 63. Rg8+ {[%emt 0:01:47]} Kf4 {[%emt 0:00:04]} 64. Rh8 {[%emt 0:00:05]} Kxe4 {[%emt 0:00:03]} 65. Rh4+ {[%emt 0:00:18]} Kf5 {[%emt 0:00:04]} 66. Rh8 {[%emt 0:00:12]} e4 {[%emt 0:01:19]} 67. Rh7 {[%emt 0:00:26]} e3 {[%emt 0:00:49]} 0-1